[Event "*** Titled Tuesday Blitz"]
[Site "Chess.com"]
[Date "2020.05.26"]
[Round "5"]
[White "nihalsarin"]
[Black "relaxx87"]
[Result "1-0"]
[WhiteElo "3028"]
[BlackElo "2671"]
[TimeControl "180+1"]
[EndTime "10:56:24 PDT"]
[Termination "nihalsarin won by resignation"]

1. e4 {[%clk 0:03:00.9]} 1... c5 {[%clk 0:02:58]} 2. Nf3 {[%clk 0:03:00.4]} 2...
d6 {[%clk 0:02:58.1]} 3. d4 {[%clk 0:03:00]} 3... cxd4 {[%clk 0:02:59]} 4. Nxd4
{[%clk 0:03:00.9]} 4... Nf6 {[%clk 0:02:58.9]} 5. Bc4 {[%clk 0:03:00.4]} 5... e6
{[%clk 0:02:57.7]} 6. Bd3 {[%clk 0:02:32.5]} 6... a6 {[%clk 0:02:54.5]} 7. O-O
{[%clk 0:02:32.8]} 7... Qc7 {[%clk 0:02:51.6]} 8. Re1 {[%clk 0:02:30.9]} 8...
Be7 {[%clk 0:02:46]} 9. c4 {[%clk 0:02:30.9]} 9... b6 {[%clk 0:02:44.7]} 10. Nc3
{[%clk 0:02:31.1]} 10... Bb7 {[%clk 0:02:44.7]} 11. b3 {[%clk 0:02:30.6]} 11...
b5 {[%clk 0:02:28.4]} 12. Bb2 {[%clk 0:02:18.7]} 12... bxc4 {[%clk 0:02:27.9]}
13. Bxc4 {[%clk 0:02:19.1]} 13... Nbd7 {[%clk 0:02:28.3]} 14. Rc1 {[%clk
0:02:19.4]} 14... Qa5 {[%clk 0:02:17.3]} 15. Nxe6 {[%clk 0:01:43.3]} 15... fxe6
{[%clk 0:02:14.4]} 16. Bxe6 {[%clk 0:01:44.2]} 16... Qg5 {[%clk 0:01:49.4]} 17.
Nd5 {[%clk 0:01:33.9]} 17... Bxd5 {[%clk 0:01:39.2]} 18. exd5 {[%clk 0:01:34.2]}
18... Nc5 {[%clk 0:01:37.7]} 19. Rxc5 {[%clk 0:00:46]} 19... dxc5 {[%clk
0:01:36.3]} 20. d6 {[%clk 0:00:46.9]} 20... Rd8 {[%clk 0:01:36.3]} 21. Bc4
{[%clk 0:00:47.1]} 21... Rd7 {[%clk 0:01:14.9]} 22. Qe2 {[%clk 0:00:32.4]} 22...
Nd5 {[%clk 0:01:11.2]} 23. h4 {[%clk 0:00:23.7]} 23... Nf4 {[%clk 0:01:08]} 24.
hxg5 {[%clk 0:00:19.1]} 24... Nxe2+ {[%clk 0:01:07.7]} 25. Rxe2 {[%clk 0:00:20]}
25... Rxd6 {[%clk 0:01:08.3]} 26. Bxg7 {[%clk 0:00:20.7]} 26... Rf8 {[%clk
0:01:08]} 27. Bxf8 {[%clk 0:00:20.8]} 27... Kxf8 {[%clk 0:01:08.9]} 28. f4
{[%clk 0:00:21.4]} 28... a5 {[%clk 0:01:08.3]} 29. Kf2 {[%clk 0:00:21.5]} 29...
h6 {[%clk 0:01:06.3]} 30. gxh6 {[%clk 0:00:21]} 30... Rxh6 {[%clk 0:01:07.2]}
31. a4 {[%clk 0:00:21.3]} 31... Rh1 {[%clk 0:01:05.3]} 32. Kf3 {[%clk
0:00:20.6]} 32... Bd6 {[%clk 0:01:03.6]} 33. Re6 {[%clk 0:00:17.9]} 33... Rd1
{[%clk 0:01:02.8]} 34. g4 {[%clk 0:00:14.1]} 34... Rd4 {[%clk 0:01:02.6]} 35.
Re4 {[%clk 0:00:14.5]} 35... Rd2 {[%clk 0:01:01.8]} 36. g5 {[%clk 0:00:14.7]}
36... Kg7 {[%clk 0:00:59.2]} 37. f5 {[%clk 0:00:13.1]} 37... Rd1 {[%clk
0:00:57.3]} 38. Re6 {[%clk 0:00:13.2]} 38... Rd4 {[%clk 0:00:54.9]} 39. Rg6+
{[%clk 0:00:13.3]} 39... Kf8 {[%clk 0:00:54.8]} 40. f6 {[%clk 0:00:13.8]} 40...
Ke8 {[%clk 0:00:54.5]} 41. Rg8+ {[%clk 0:00:13.5]} 41... Kd7 {[%clk 0:00:54.3]}
42. Rg7+ {[%clk 0:00:13.1]} 42... Kc6 {[%clk 0:00:54]} 43. f7 {[%clk 0:00:11.1]}
43... Rf4+ {[%clk 0:00:53.1]} 44. Ke3 {[%clk 0:00:11.7]} 44... Rf5 {[%clk
0:00:47.2]} 45. Rg6 {[%clk 0:00:12.2]} 45... Kd7 {[%clk 0:00:42.1]} 46. Be6+
{[%clk 0:00:11.7]} 1-0

[Event "*** Titled Tuesday Blitz"]
[Site "Chess.com"]
[Date "2020.05.26"]
[Round "5"]
[White "MFguimaraes"]
[Black "Everyfishknows"]
[Result "1-0"]
[WhiteElo "2507"]
[BlackElo "2341"]
[TimeControl "180+1"]
[EndTime "10:56:24 PDT"]
[Termination "MFguimaraes won on time"]

1. e4 {[%clk 0:03:00.9]} 1... e5 {[%clk 0:02:58.8]} 2. Nf3 {[%clk 0:03:00.9]}
2... Nc6 {[%clk 0:02:57.5]} 3. Bc4 {[%clk 0:03:00.6]} 3... Nf6 {[%clk
0:02:57.2]} 4. Ng5 {[%clk 0:02:59.5]} 4... d5 {[%clk 0:02:57.1]} 5. exd5 {[%clk
0:02:59.5]} 5... Na5 {[%clk 0:02:57.3]} 6. Bb5+ {[%clk 0:02:59.5]} 6... c6
{[%clk 0:02:57.8]} 7. dxc6 {[%clk 0:02:59.8]} 7... bxc6 {[%clk 0:02:58.7]} 8.
Qf3 {[%clk 0:03:00.1]} 8... Be7 {[%clk 0:02:56.7]} 9. Bxc6+ {[%clk 0:02:57.4]}
9... Nxc6 {[%clk 0:02:56.3]} 10. Qxc6+ {[%clk 0:02:58.3]} 10... Bd7 {[%clk
0:02:56.9]} 11. Qa6 {[%clk 0:02:58.2]} 11... O-O {[%clk 0:02:56.5]} 12. Nc3
{[%clk 0:02:57.2]} 12... Rc8 {[%clk 0:02:47]} 13. Qe2 {[%clk 0:02:54.4]} 13...
Bc6 {[%clk 0:02:40.3]} 14. O-O {[%clk 0:02:40.2]} 14... Qc7 {[%clk 0:02:30]} 15.
d3 {[%clk 0:02:32.8]} 15... Rfe8 {[%clk 0:02:20.5]} 16. Nge4 {[%clk 0:02:12.2]}
16... Nd5 {[%clk 0:02:09.2]} 17. Nxd5 {[%clk 0:02:09.4]} 17... Bxd5 {[%clk
0:02:08.9]} 18. c4 {[%clk 0:02:09.1]} 18... Ba8 {[%clk 0:02:05.7]} 19. Nc3
{[%clk 0:01:39.2]} 19... Bc5 {[%clk 0:01:53]} 20. Be3 {[%clk 0:01:38]} 20... Bd4
{[%clk 0:01:52.9]} 21. f3 {[%clk 0:01:28]} 21... Qb6 {[%clk 0:01:22.5]} 22. Rfe1
{[%clk 0:01:26.2]} 22... Bc6 {[%clk 0:01:13.4]} 23. Ne4 {[%clk 0:01:13.1]} 23...
Rcd8 {[%clk 0:00:52.8]} 24. Rab1 {[%clk 0:00:56.9]} 24... f5 {[%clk 0:00:47.4]}
25. Nf2 {[%clk 0:00:56.1]} 25... h6 {[%clk 0:00:16.8]} 26. b4 {[%clk 0:00:55]}
26... Ba8 {[%clk 0:00:14.6]} 27. a4 {[%clk 0:00:43.1]} 27... a5 {[%clk
0:00:14.1]} 28. bxa5 {[%clk 0:00:36.7]} 28... Qxa5 {[%clk 0:00:13.4]} 29. Bxd4
{[%clk 0:00:35.5]} 29... Rxd4 {[%clk 0:00:13.4]} 30. Rb5 {[%clk 0:00:32.3]}
30... Qc3 {[%clk 0:00:11.4]} 31. Rxe5 {[%clk 0:00:31.1]} 31... Rf8 {[%clk
0:00:05.4]} 32. Re7 {[%clk 0:00:24.4]} 32... Rd6 {[%clk 0:00:02.8]} 33. Qe5
{[%clk 0:00:20.5]} 33... Qxe5 {[%clk 0:00:01.4]} 34. R1xe5 {[%clk 0:00:20.6]}
34... Ra6 {[%clk 0:00:01.8]} 35. a5 {[%clk 0:00:20.5]} 35... Bc6 {[%clk
0:00:01.2]} 36. Rc7 {[%clk 0:00:19.2]} 1-0

[Event "*** Titled Tuesday Blitz"]
[Site "Chess.com"]
[Date "2020.05.26"]
[Round "5"]
[White "ftorodent"]
[Black "Indianlad"]
[Result "0-1"]
[WhiteElo "2662"]
[BlackElo "2976"]
[TimeControl "180+1"]
[EndTime "10:56:25 PDT"]
[Termination "Indianlad won by resignation"]

1. d4 {[%clk 0:03:00.9]} 1... Nf6 {[%clk 0:02:59.7]} 2. c4 {[%clk 0:03:00.9]}
2... e6 {[%clk 0:02:59.7]} 3. Nf3 {[%clk 0:03:00.9]} 3... d5 {[%clk 0:02:59.6]}
4. Nc3 {[%clk 0:03:00.5]} 4... Be7 {[%clk 0:03:00.1]} 5. Bf4 {[%clk 0:02:59.8]}
5... O-O {[%clk 0:02:59.7]} 6. e3 {[%clk 0:03:00]} 6... Nbd7 {[%clk 0:03:00.2]}
7. c5 {[%clk 0:02:51.6]} 7... Ne4 {[%clk 0:03:00.1]} 8. Rc1 {[%clk 0:02:38.4]}
8... Nxc3 {[%clk 0:02:49.4]} 9. Rxc3 {[%clk 0:02:38.2]} 9... b6 {[%clk
0:02:50.1]} 10. cxb6 {[%clk 0:02:28.8]} 10... c5 {[%clk 0:02:22.4]} 11. Bc7
{[%clk 0:02:19.3]} 11... Qe8 {[%clk 0:02:22]} 12. Bb5 {[%clk 0:02:19]} 12...
axb6 {[%clk 0:02:21.6]} 13. O-O {[%clk 0:02:06]} 13... Ba6 {[%clk 0:02:16]} 14.
Qa4 {[%clk 0:01:42.8]} 14... Qc8 {[%clk 0:02:13.7]} 15. Bg3 {[%clk 0:01:23.8]}
15... Bxb5 {[%clk 0:02:13]} 16. Qxb5 {[%clk 0:01:24.1]} 16... Rxa2 {[%clk
0:02:13.6]} 17. Rfc1 {[%clk 0:01:17.9]} 17... c4 {[%clk 0:02:02.6]} 18. Ne5
{[%clk 0:01:07.9]} 18... Nxe5 {[%clk 0:02:02.1]} 19. Bxe5 {[%clk 0:01:07.6]}
19... Qb7 {[%clk 0:01:59.3]} 20. b4 {[%clk 0:00:47.9]} 20... Rb2 {[%clk
0:01:53.9]} 21. Qa4 {[%clk 0:00:40.9]} 21... b5 {[%clk 0:01:53]} 22. Qa1 {[%clk
0:00:37.4]} 22... Rxb4 {[%clk 0:01:50.8]} 23. Ra3 {[%clk 0:00:36.9]} 23... Ra4
{[%clk 0:01:45.1]} 24. Rxa4 {[%clk 0:00:36.6]} 24... bxa4 {[%clk 0:01:46]} 25.
Qxa4 {[%clk 0:00:36.8]} 25... Ra8 {[%clk 0:01:46.6]} 26. Qc2 {[%clk 0:00:36.9]}
26... f6 {[%clk 0:01:46.6]} 27. Bg3 {[%clk 0:00:36.2]} 27... Qb3 {[%clk
0:01:44.4]} 28. h3 {[%clk 0:00:26.9]} 28... Qxc2 {[%clk 0:01:43.8]} 29. Rxc2
{[%clk 0:00:27.2]} 29... Ra6 {[%clk 0:01:29.5]} 30. Kf1 {[%clk 0:00:27.3]} 30...
Bd6 {[%clk 0:01:29.4]} 31. Bxd6 {[%clk 0:00:25.4]} 31... Rxd6 {[%clk 0:01:30.3]}
32. Ra2 {[%clk 0:00:25.5]} 32... h5 {[%clk 0:01:28]} 33. g4 {[%clk 0:00:23.7]}
33... h4 {[%clk 0:01:25.9]} 34. Ke2 {[%clk 0:00:23.8]} 34... Rb6 {[%clk
0:01:26.1]} 35. Ra7 {[%clk 0:00:17.5]} 35... Kf8 {[%clk 0:01:20.6]} 36. Kf3
{[%clk 0:00:15.5]} 36... Rc6 {[%clk 0:01:19.4]} 37. Ke2 {[%clk 0:00:15]} 37...
Rb6 {[%clk 0:01:12.8]} 38. Kf3 {[%clk 0:00:14.9]} 38... Rb1 {[%clk 0:01:12.9]}
39. g5 {[%clk 0:00:14.2]} 39... fxg5 {[%clk 0:01:06]} 40. Kg4 {[%clk 0:00:14.2]}
40... Rg1+ {[%clk 0:01:04.6]} 41. Kh5 {[%clk 0:00:14.3]} 41... Rg2 {[%clk
0:00:52.8]} 42. f4 {[%clk 0:00:14]} 42... gxf4 {[%clk 0:00:52.5]} 43. exf4
{[%clk 0:00:14.2]} 43... Rf2 {[%clk 0:00:45.9]} 44. Kg4 {[%clk 0:00:13.7]} 44...
Rd2 {[%clk 0:00:46.1]} 45. f5 {[%clk 0:00:12.6]} 45... Rxd4+ {[%clk 0:00:44.8]}
46. Kg5 {[%clk 0:00:13]} 46... exf5 {[%clk 0:00:45.2]} 47. Kxf5 {[%clk
0:00:13.2]} 47... Rd3 {[%clk 0:00:45.3]} 48. Ke6 {[%clk 0:00:12.5]} 48... Kg8
{[%clk 0:00:45.8]} 49. Rd7 {[%clk 0:00:11.5]} 49... c3 {[%clk 0:00:45.4]} 0-1

[Event "*** Titled Tuesday Blitz"]
[Site "Chess.com"]
[Date "2020.05.26"]
[Round "5"]
[White "tan275"]
[Black "Dmitry_M1"]
[Result "0-1"]
[WhiteElo "2194"]
[BlackElo "2394"]
[TimeControl "180+1"]
[EndTime "10:56:25 PDT"]
[Termination "Dmitry_M1 won by resignation"]

1. d4 {[%clk 0:03:00.9]} 1... Nf6 {[%clk 0:02:59.4]} 2. c4 {[%clk 0:03:00.6]}
2... c5 {[%clk 0:02:59.5]} 3. d5 {[%clk 0:03:00.2]} 3... e5 {[%clk 0:02:59.8]}
4. Nc3 {[%clk 0:02:56.2]} 4... d6 {[%clk 0:03:00.3]} 5. e4 {[%clk 0:02:53.1]}
5... Be7 {[%clk 0:03:00.7]} 6. g3 {[%clk 0:02:45.2]} 6... O-O {[%clk 0:03:00.7]}
7. Bg2 {[%clk 0:02:45.5]} 7... a6 {[%clk 0:02:59]} 8. a4 {[%clk 0:02:43.4]} 8...
b6 {[%clk 0:02:59]} 9. Nge2 {[%clk 0:02:43]} 9... Ra7 {[%clk 0:02:58.7]} 10. O-O
{[%clk 0:02:43.5]} 10... Ne8 {[%clk 0:02:58.5]} 11. f4 {[%clk 0:02:42]} 11...
exf4 {[%clk 0:02:56.6]} 12. Bxf4 {[%clk 0:02:39.3]} 12... Bf6 {[%clk 0:02:55.2]}
13. Qd2 {[%clk 0:02:38.1]} 13... Nd7 {[%clk 0:02:55]} 14. Nc1 {[%clk 0:02:12.7]}
14... Qe7 {[%clk 0:02:50.5]} 15. Nd3 {[%clk 0:02:11.4]} 15... Ne5 {[%clk
0:02:49.6]} 16. Bxe5 {[%clk 0:02:08.6]} 16... Bxe5 {[%clk 0:02:49]} 17. Nxe5
{[%clk 0:02:08.4]} 17... Qxe5 {[%clk 0:02:48.9]} 18. Ne2 {[%clk 0:02:04.5]}
18... Nf6 {[%clk 0:02:19.5]} 19. Ra3 {[%clk 0:01:50.7]} 19... Nxe4 {[%clk
0:01:52.4]} 20. Bxe4 {[%clk 0:00:59.3]} 20... Qxe4 {[%clk 0:01:52.2]} 21. Rf4
{[%clk 0:00:57.3]} 21... Qe8 {[%clk 0:01:32.8]} 22. Raf3 {[%clk 0:00:46.7]}
22... Re7 {[%clk 0:01:30.9]} 23. Rf2 {[%clk 0:00:43.7]} 23... Qxa4 {[%clk
0:01:28.1]} 24. Nc3 {[%clk 0:00:34.7]} 24... Qe8 {[%clk 0:01:23.3]} 25. Kg2
{[%clk 0:00:26.6]} 25... b5 {[%clk 0:01:22]} 26. cxb5 {[%clk 0:00:23.7]} 26...
axb5 {[%clk 0:01:22.2]} 27. Qc2 {[%clk 0:00:20.3]} 27... Bb7 {[%clk 0:01:14.2]}
28. Qf5 {[%clk 0:00:15.9]} 28... Re5 {[%clk 0:01:05.2]} 29. Qd3 {[%clk 0:00:15]}
29... b4 {[%clk 0:01:04.7]} 30. Nb5 {[%clk 0:00:14.1]} 30... Rxd5 {[%clk
0:00:52.7]} 31. Qf3 {[%clk 0:00:10.8]} 31... Qxb5 {[%clk 0:00:18.9]} 32. Rxf7
{[%clk 0:00:10.3]} 32... Rf5 {[%clk 0:00:19.1]} 33. Rxf5 {[%clk 0:00:06.8]}
33... Rxf5 {[%clk 0:00:17.8]} 34. Qxb7 {[%clk 0:00:05.4]} 34... Qxb7+ {[%clk
0:00:17.7]} 0-1

[Event "*** Titled Tuesday Blitz"]
[Site "Chess.com"]
[Date "2020.05.26"]
[Round "5"]
[White "Thipsay"]
[Black "Leonid_Starozhilov"]
[Result "1/2-1/2"]
[WhiteElo "2469"]
[BlackElo "2666"]
[TimeControl "180+1"]
[EndTime "10:56:27 PDT"]
[Termination "Game drawn by repetition"]

1. e4 {[%clk 0:03:00.9]} 1... d6 {[%clk 0:02:59.1]} 2. d4 {[%clk 0:03:00.1]}
2... Nf6 {[%clk 0:02:59.8]} 3. Nc3 {[%clk 0:03:00.2]} 3... e5 {[%clk 0:02:59.4]}
4. Nf3 {[%clk 0:02:59.5]} 4... Nbd7 {[%clk 0:02:59.3]} 5. Bc4 {[%clk 0:02:59.2]}
5... Be7 {[%clk 0:02:59.5]} 6. O-O {[%clk 0:02:58.3]} 6... O-O {[%clk
0:02:59.7]} 7. a4 {[%clk 0:02:57.5]} 7... a5 {[%clk 0:02:59.8]} 8. Re1 {[%clk
0:02:54.6]} 8... Nb6 {[%clk 0:02:54.9]} 9. Bb3 {[%clk 0:02:52.9]} 9... Nfd7
{[%clk 0:02:53.8]} 10. Be3 {[%clk 0:02:50.3]} 10... exd4 {[%clk 0:02:53.5]} 11.
Nxd4 {[%clk 0:02:49.8]} 11... Nc5 {[%clk 0:02:53.7]} 12. Ndb5 {[%clk 0:02:39.4]}
12... c6 {[%clk 0:02:43.7]} 13. Bxc5 {[%clk 0:02:05.1]} 13... dxc5 {[%clk
0:02:41.4]} 14. Na3 {[%clk 0:02:05.2]} 14... Qxd1 {[%clk 0:02:16.9]} 15. Raxd1
{[%clk 0:02:04.1]} 15... Be6 {[%clk 0:02:13.5]} 16. Bxe6 {[%clk 0:02:02.3]}
16... fxe6 {[%clk 0:02:14.4]} 17. g3 {[%clk 0:01:56.7]} 17... c4 {[%clk
0:02:04.7]} 18. Re2 {[%clk 0:01:40.9]} 18... Rad8 {[%clk 0:01:52.8]} 19. Red2
{[%clk 0:01:38.3]} 19... Rxd2 {[%clk 0:01:28.4]} 20. Rxd2 {[%clk 0:01:38.1]}
20... Bb4 {[%clk 0:01:27.8]} 21. Nab1 {[%clk 0:01:37.4]} 21... Kf7 {[%clk
0:01:02.3]} 22. Kf1 {[%clk 0:01:36.4]} 22... Ke7 {[%clk 0:01:02.1]} 23. Ke2
{[%clk 0:01:34.5]} 23... g5 {[%clk 0:01:00.2]} 24. f3 {[%clk 0:01:33.8]} 24...
h6 {[%clk 0:00:58.7]} 25. Rd4 {[%clk 0:01:30.9]} 25... Bc5 {[%clk 0:00:55.1]}
26. Rd1 {[%clk 0:01:30.2]} 26... Bb4 {[%clk 0:00:47.1]} 27. Rd4 {[%clk 0:01:29]}
27... Nd7 {[%clk 0:00:27.9]} 28. Na3 {[%clk 0:01:16.8]} 28... Ne5 {[%clk
0:00:27.6]} 29. Nxc4 {[%clk 0:01:10.4]} 29... Nxf3 {[%clk 0:00:19.8]} 30. Rd1
{[%clk 0:01:09.9]} 30... Nxh2 {[%clk 0:00:12.5]} 31. Ne5 {[%clk 0:01:09.9]}
31... Rd8 {[%clk 0:00:07.6]} 32. Rh1 {[%clk 0:01:06.2]} 32... Kf6 {[%clk
0:00:04.6]} 33. Rxh2 {[%clk 0:01:00]} 33... Kxe5 {[%clk 0:00:04.7]} 34. Rxh6
{[%clk 0:01:00.6]} 34... Bxc3 {[%clk 0:00:05.1]} 35. bxc3 {[%clk 0:01:00.8]}
35... Rg8 {[%clk 0:00:03.5]} 36. Ke3 {[%clk 0:01:00.5]} 36... b5 {[%clk
0:00:03.5]} 37. Rh7 {[%clk 0:00:59.5]} 37... Ra8 {[%clk 0:00:02]} 38. Rh1 {[%clk
0:00:56.9]} 38... bxa4 {[%clk 0:00:01.5]} 39. Ra1 {[%clk 0:00:56.9]} 39... Kd6
{[%clk 0:00:01.8]} 40. Rxa4 {[%clk 0:00:56.7]} 40... Kc5 {[%clk 0:00:02.3]} 41.
c4 {[%clk 0:00:57.1]} 41... e5 {[%clk 0:00:02.1]} 42. c3 {[%clk 0:00:57]} 42...
Kb6 {[%clk 0:00:02.5]} 43. Kf3 {[%clk 0:00:55.8]} 43... Kc5 {[%clk 0:00:02.2]}
44. Kg4 {[%clk 0:00:55.7]} 44... Kb6 {[%clk 0:00:02.5]} 45. Kxg5 {[%clk
0:00:55.7]} 45... Rg8+ {[%clk 0:00:03]} 46. Kf5 {[%clk 0:00:55.8]} 46... Rxg3
{[%clk 0:00:03.1]} 47. Kxe5 {[%clk 0:00:55.7]} 47... Rxc3 {[%clk 0:00:03.8]} 48.
Kd4 {[%clk 0:00:55.9]} 48... Rc1 {[%clk 0:00:04.1]} 49. e5 {[%clk 0:00:55.7]}
49... Rd1+ {[%clk 0:00:04.6]} 50. Ke3 {[%clk 0:00:55.6]} 50... Re1+ {[%clk
0:00:04.6]} 51. Kd4 {[%clk 0:00:55.6]} 51... Rd1+ {[%clk 0:00:04.7]} 52. Kc3
{[%clk 0:00:55.5]} 52... Re1 {[%clk 0:00:04.6]} 53. Kd4 {[%clk 0:00:55.6]} 53...
Rd1+ {[%clk 0:00:04.3]} 1/2-1/2

[Event "*** Titled Tuesday Blitz"]
[Site "Chess.com"]
[Date "2020.05.26"]
[Round "5"]
[White "FrogMist"]
[Black "Savagelittlemole"]
[Result "0-1"]
[WhiteElo "2355"]
[BlackElo "2528"]
[TimeControl "180+1"]
[EndTime "10:56:28 PDT"]
[Termination "Savagelittlemole won on time"]

1. e4 {[%clk 0:03:00.9]} 1... c5 {[%clk 0:02:58.8]} 2. Nf3 {[%clk 0:03:00.2]}
2... d6 {[%clk 0:02:54.2]} 3. d4 {[%clk 0:03:00.1]} 3... cxd4 {[%clk 0:02:54.7]}
4. Nxd4 {[%clk 0:03:01]} 4... Nf6 {[%clk 0:02:55.1]} 5. Nc3 {[%clk 0:03:01]}
5... a6 {[%clk 0:02:55.7]} 6. Bg5 {[%clk 0:03:00.9]} 6... Nbd7 {[%clk
0:02:55.5]} 7. Qe2 {[%clk 0:03:00.8]} 7... e5 {[%clk 0:02:54.2]} 8. Nf5 {[%clk
0:03:00]} 8... g6 {[%clk 0:02:54]} 9. Ne3 {[%clk 0:02:52.7]} 9... h6 {[%clk
0:02:53.2]} 10. Bh4 {[%clk 0:02:47.2]} 10... Be7 {[%clk 0:02:51]} 11. O-O-O
{[%clk 0:02:39.2]} 11... O-O {[%clk 0:02:47.7]} 12. Bg3 {[%clk 0:01:33.5]} 12...
b5 {[%clk 0:02:42.8]} 13. f3 {[%clk 0:01:27.5]} 13... Bb7 {[%clk 0:02:41.2]} 14.
Qd2 {[%clk 0:01:09.5]} 14... Rc8 {[%clk 0:02:39.5]} 15. Kb1 {[%clk 0:01:05.9]}
15... Nc5 {[%clk 0:02:13.8]} 16. Be2 {[%clk 0:00:57.9]} 16... Ne6 {[%clk
0:02:13]} 17. Ned5 {[%clk 0:00:54.3]} 17... Nxd5 {[%clk 0:02:11.2]} 18. Nxd5
{[%clk 0:00:40.3]} 18... Bxd5 {[%clk 0:02:03.5]} 19. exd5 {[%clk 0:00:41.2]}
19... Nd4 {[%clk 0:02:02.6]} 20. Bd3 {[%clk 0:00:40.3]} 20... Bg5 {[%clk
0:01:59.5]} 21. f4 {[%clk 0:00:34.5]} 21... exf4 {[%clk 0:01:47]} 22. Bxf4
{[%clk 0:00:35.4]} 22... Re8 {[%clk 0:01:18.8]} 23. Rhe1 {[%clk 0:00:26.9]}
23... Rxe1 {[%clk 0:01:14.6]} 24. Rxe1 {[%clk 0:00:26]} 24... Qf6 {[%clk
0:01:07.7]} 25. Bxg5 {[%clk 0:00:22.5]} 25... hxg5 {[%clk 0:01:08.6]} 26. c3
{[%clk 0:00:16.8]} 26... Nf5 {[%clk 0:01:03.6]} 27. Qf2 {[%clk 0:00:13.6]} 27...
Kg7 {[%clk 0:00:48.9]} 28. Rf1 {[%clk 0:00:10.7]} 28... Qe5 {[%clk 0:00:31.6]}
29. Bxf5 {[%clk 0:00:08.5]} 29... gxf5 {[%clk 0:00:32]} 30. Qxf5 {[%clk
0:00:09.4]} 30... Qxf5+ {[%clk 0:00:32.2]} 31. Rxf5 {[%clk 0:00:10.3]} 31... Kg6
{[%clk 0:00:29.2]} 32. Rf2 {[%clk 0:00:09.9]} 32... Re8 {[%clk 0:00:29.2]} 33.
Kc2 {[%clk 0:00:09.8]} 33... Re5 {[%clk 0:00:28.6]} 34. Rd2 {[%clk 0:00:09.5]}
34... f5 {[%clk 0:00:28.8]} 35. Kb3 {[%clk 0:00:09.5]} 35... Re4 {[%clk
0:00:28.6]} 36. g3 {[%clk 0:00:06.3]} 36... Kf6 {[%clk 0:00:23.1]} 37. Kc2
{[%clk 0:00:02.7]} 37... Ke5 {[%clk 0:00:22.8]} 38. b3 {[%clk 0:00:03.2]} 38...
f4 {[%clk 0:00:20.3]} 39. gxf4+ {[%clk 0:00:02.3]} 39... gxf4 {[%clk 0:00:21.2]}
0-1

[Event "*** Titled Tuesday Blitz"]
[Site "Chess.com"]
[Date "2020.05.26"]
[Round "5"]
[White "NotFischer"]
[Black "Quattroporte300"]
[Result "0-1"]
[WhiteElo "2140"]
[BlackElo "2315"]
[TimeControl "180+1"]
[EndTime "10:56:30 PDT"]
[Termination "Quattroporte300 won on time"]

1. e4 {[%clk 0:03:00.9]} 1... e5 {[%clk 0:02:56.4]} 2. Bc4 {[%clk 0:02:59.8]}
2... Nf6 {[%clk 0:02:55]} 3. d3 {[%clk 0:03:00.3]} 3... c6 {[%clk 0:02:52.2]} 4.
Nf3 {[%clk 0:02:58.3]} 4... d5 {[%clk 0:02:46.4]} 5. Bb3 {[%clk 0:02:57.3]} 5...
a5 {[%clk 0:02:44.4]} 6. a4 {[%clk 0:02:54.4]} 6... Bb4+ {[%clk 0:02:43]} 7. c3
{[%clk 0:02:53.3]} 7... Bd6 {[%clk 0:02:42.6]} 8. exd5 {[%clk 0:02:47.3]} 8...
cxd5 {[%clk 0:02:41.6]} 9. O-O {[%clk 0:02:44.2]} 9... O-O {[%clk 0:02:41.2]}
10. Bg5 {[%clk 0:02:43.2]} 10... Be6 {[%clk 0:02:39.9]} 11. Re1 {[%clk
0:02:41.1]} 11... Nbd7 {[%clk 0:02:37.3]} 12. Na3 {[%clk 0:02:40.9]} 12... Ra6
{[%clk 0:02:32.7]} 13. Nb5 {[%clk 0:02:36.3]} 13... Bb8 {[%clk 0:02:32.3]} 14.
h3 {[%clk 0:02:12]} 14... h6 {[%clk 0:02:31.1]} 15. Bh4 {[%clk 0:02:07.4]} 15...
Re8 {[%clk 0:02:22.9]} 16. Qd2 {[%clk 0:01:51.6]} 16... Nc5 {[%clk 0:01:51.5]}
17. Bc2 {[%clk 0:01:46.2]} 17... Bf5 {[%clk 0:01:43.4]} 18. c4 {[%clk
0:01:16.6]} 18... dxc4 {[%clk 0:01:35.5]} 19. d4 {[%clk 0:00:48.2]} 19... Bxc2
{[%clk 0:01:30]} 20. dxc5 {[%clk 0:00:40.2]} 20... Qxd2 {[%clk 0:01:27.1]} 21.
Nxd2 {[%clk 0:00:41.1]} 21... Bd3 {[%clk 0:01:23.2]} 22. Rac1 {[%clk 0:00:40.2]}
22... e4 {[%clk 0:00:51.1]} 23. Bxf6 {[%clk 0:00:38.3]} 23... gxf6 {[%clk
0:00:50.6]} 24. f3 {[%clk 0:00:37.8]} 24... Bf4 {[%clk 0:00:49]} 25. Nxe4 {[%clk
0:00:31.9]} 25... Bxe4 {[%clk 0:00:46.6]} 26. fxe4 {[%clk 0:00:30.9]} 26... Bxc1
{[%clk 0:00:46.5]} 27. Rxc1 {[%clk 0:00:31.8]} 27... Rxe4 {[%clk 0:00:46.5]} 28.
Nd6 {[%clk 0:00:32]} 28... Re5 {[%clk 0:00:40.1]} 29. Nxb7 {[%clk 0:00:30.2]}
29... Rc6 {[%clk 0:00:34.9]} 30. Rxc4 {[%clk 0:00:29.5]} 30... Rc7 {[%clk
0:00:35.1]} 31. c6 {[%clk 0:00:28.7]} 31... Kf8 {[%clk 0:00:29.2]} 32. Nd6
{[%clk 0:00:24.9]} 32... Re6 {[%clk 0:00:24.9]} 33. Nb7 {[%clk 0:00:10.4]} 33...
Rcxc6 {[%clk 0:00:23.7]} 34. Rd4 {[%clk 0:00:06.6]} 34... Rc1+ {[%clk
0:00:22.8]} 35. Kh2 {[%clk 0:00:06.8]} 35... Re2 {[%clk 0:00:21.9]} 36. Nxa5
{[%clk 0:00:06.1]} 36... Rcc2 {[%clk 0:00:21.8]} 37. Rg4 {[%clk 0:00:06.2]}
37... f5 {[%clk 0:00:22.2]} 38. Rg3 {[%clk 0:00:05.6]} 38... f4 {[%clk
0:00:22.5]} 39. Rg4 {[%clk 0:00:05.3]} 39... h5 {[%clk 0:00:21.9]} 40. Rg5
{[%clk 0:00:03.8]} 40... f6 {[%clk 0:00:21.7]} 41. Rg6 {[%clk 0:00:02.3]} 41...
Kf7 {[%clk 0:00:21.9]} 0-1